[Event "*** Titled Tuesday Blitz"]
[Site "Chess.com"]
[Date "2019.08.06"]
[Round "3"]
[White "joppie2"]
[Black "farzadbfd"]
[Result "1-0"]
[WhiteElo "2892"]
[BlackElo "2669"]
[TimeControl "180+2"]
[EndTime "13:37:21 PDT"]
[Termination "joppie2 won by resignation"]

1. e4 {[%clk 0:02:52.5]} 1... e5 {[%clk 0:03:01.1]} 2. Nf3 {[%clk 0:02:53]} 2...
Nc6 {[%clk 0:03:02.5]} 3. Bc4 {[%clk 0:02:54.7]} 3... Bc5 {[%clk 0:03:03.1]} 4.
c3 {[%clk 0:02:55.8]} 4... Nf6 {[%clk 0:03:04.5]} 5. d4 {[%clk 0:02:56.6]} 5...
exd4 {[%clk 0:03:05.5]} 6. e5 {[%clk 0:02:58.2]} 6... d5 {[%clk 0:03:06.8]} 7.
Bb5 {[%clk 0:02:54.6]} 7... Ne4 {[%clk 0:03:08.1]} 8. cxd4 {[%clk 0:02:56.2]}
8... Bb6 {[%clk 0:03:09.8]} 9. Nc3 {[%clk 0:02:56.8]} 9... O-O {[%clk
0:03:10.6]} 10. Be3 {[%clk 0:02:57.5]} 10... f6 {[%clk 0:03:10.9]} 11. exf6
{[%clk 0:02:57.6]} 11... Nxf6 {[%clk 0:03:06.1]} 12. h3 {[%clk 0:02:57.2]} 12...
Ne7 {[%clk 0:03:07.2]} 13. O-O {[%clk 0:02:53.6]} 13... c6 {[%clk 0:03:07.9]}
14. Bd3 {[%clk 0:02:48.2]} 14... Bf5 {[%clk 0:03:09.3]} 15. Na4 {[%clk
0:02:40.7]} 15... Bc7 {[%clk 0:03:09.5]} 16. Nc5 {[%clk 0:02:39.8]} 16... Qd6
{[%clk 0:03:00.6]} 17. Nxb7 {[%clk 0:02:38.1]} 17... Qb4 {[%clk 0:02:53.7]} 18.
Nc5 {[%clk 0:02:30.2]} 18... Qxb2 {[%clk 0:02:51]} 19. Qa4 {[%clk 0:01:54.7]}
19... Ne4 {[%clk 0:02:42.3]} 20. Bxe4 {[%clk 0:01:41.3]} 20... dxe4 {[%clk
0:02:34.5]} 21. Rab1 {[%clk 0:01:24.3]} 21... Qe2 {[%clk 0:01:53.9]} 22. Rfe1
{[%clk 0:01:09.5]} 22... exf3 {[%clk 0:01:45.3]} 23. Rxe2 {[%clk 0:01:08]} 23...
fxe2 {[%clk 0:01:46.2]} 24. Re1 {[%clk 0:01:06.4]} 24... Nd5 {[%clk 0:01:36.3]}
25. Rxe2 {[%clk 0:01:04.5]} 25... Rab8 {[%clk 0:01:20.8]} 26. Re1 {[%clk
0:00:49.9]} 26... Nxe3 {[%clk 0:01:11.2]} 27. fxe3 {[%clk 0:00:49.6]} 27... Rb2
{[%clk 0:00:50.3]} 28. Rf1 {[%clk 0:00:37.8]} 28... Rf6 {[%clk 0:00:26.9]} 29.
Qxa7 {[%clk 0:00:16.5]} 29... Bxh3 {[%clk 0:00:12.4]} 30. Qa8+ {[%clk
0:00:11.3]} 30... Rb8 {[%clk 0:00:07.5]} 31. Qa3 {[%clk 0:00:06]} 31... Bf5
{[%clk 0:00:03.7]} 32. e4 {[%clk 0:00:05.8]} 32... Bg6 {[%clk 0:00:04.1]} 33.
Rxf6 {[%clk 0:00:06.4]} 33... gxf6 {[%clk 0:00:06]} 34. Qd3 {[%clk 0:00:06.8]}
34... Bb6 {[%clk 0:00:06.6]} 35. Nd7 {[%clk 0:00:07.4]} 35... Rb7 {[%clk
0:00:07.4]} 36. Qc4+ {[%clk 0:00:06.8]} 36... Kg7 {[%clk 0:00:08.2]} 37. Nxb6
{[%clk 0:00:06.8]} 37... Rxb6 {[%clk 0:00:10.1]} 38. d5 {[%clk 0:00:05.8]} 38...
cxd5 {[%clk 0:00:09.8]} 39. Qc7+ {[%clk 0:00:06.5]} 39... Kh6 {[%clk 0:00:10]}
40. Qxb6 {[%clk 0:00:08.4]} 40... Bxe4 {[%clk 0:00:11.9]} 41. Qe3+ {[%clk
0:00:08.7]} 41... Kh5 {[%clk 0:00:13.8]} 42. a4 {[%clk 0:00:10.5]} 42... Kg4
{[%clk 0:00:15.3]} 43. g3 {[%clk 0:00:11.2]} 43... f5 {[%clk 0:00:17.2]} 44.
Qf4+ {[%clk 0:00:12.9]} 44... Kh5 {[%clk 0:00:18.3]} 45. a5 {[%clk 0:00:14.8]}
45... Kg6 {[%clk 0:00:20.2]} 46. a6 {[%clk 0:00:16.2]} 46... d4 {[%clk
0:00:22.1]} 47. a7 {[%clk 0:00:18.1]} 47... d3 {[%clk 0:00:23.8]} 48. Qd6+
{[%clk 0:00:19.6]} 48... Kg5 {[%clk 0:00:24.9]} 49. Kf2 {[%clk 0:00:21.5]} 49...
Kg4 {[%clk 0:00:26.1]} 50. Qf4+ {[%clk 0:00:18]} 50... Kh5 {[%clk 0:00:27.4]}
51. g4+ {[%clk 0:00:19.6]} 1-0

[Event "*** Titled Tuesday Blitz"]
[Site "Chess.com"]
[Date "2019.08.06"]
[Round "3"]
[White "Heineccius"]
[Black "Mr_Penings"]
[Result "0-1"]
[WhiteElo "2538"]
[BlackElo "2504"]
[TimeControl "180+2"]
[EndTime "13:37:29 PDT"]
[Termination "Mr_Penings won by checkmate"]

1. d4 {[%clk 0:03:01.9]} 1... Nf6 {[%clk 0:02:57.5]} 2. c4 {[%clk 0:03:02.6]}
2... d6 {[%clk 0:02:58.6]} 3. Nf3 {[%clk 0:03:02.3]} 3... g6 {[%clk 0:02:59.2]}
4. g3 {[%clk 0:03:03.1]} 4... Bg7 {[%clk 0:03:00.5]} 5. Bg2 {[%clk 0:03:04]}
5... O-O {[%clk 0:03:01.7]} 6. O-O {[%clk 0:03:05]} 6... Nbd7 {[%clk 0:03:03]}
7. Nc3 {[%clk 0:03:05.7]} 7... e5 {[%clk 0:03:04.2]} 8. e4 {[%clk 0:03:06.7]}
8... b6 {[%clk 0:03:01.8]} 9. h3 {[%clk 0:03:02.8]} 9... Bb7 {[%clk 0:03:02]}
10. Re1 {[%clk 0:02:54.4]} 10... Re8 {[%clk 0:02:54.7]} 11. d5 {[%clk
0:02:50.8]} 11... a5 {[%clk 0:02:55]} 12. b3 {[%clk 0:02:49.5]} 12... Nc5 {[%clk
0:02:53.6]} 13. Rb1 {[%clk 0:02:47.1]} 13... c6 {[%clk 0:02:53.2]} 14. a3 {[%clk
0:02:37.5]} 14... cxd5 {[%clk 0:02:53.9]} 15. cxd5 {[%clk 0:02:38.7]} 15... Ba6
{[%clk 0:02:42.6]} 16. Bf1 {[%clk 0:02:13.4]} 16... Bxf1 {[%clk 0:02:42.1]} 17.
Kxf1 {[%clk 0:02:14.8]} 17... Qd7 {[%clk 0:02:13.7]} 18. Kg2 {[%clk 0:02:11.8]}
18... b5 {[%clk 0:02:09.9]} 19. b4 {[%clk 0:01:54.5]} 19... axb4 {[%clk
0:02:08.3]} 20. Rxb4 {[%clk 0:01:47.8]} 20... Ra5 {[%clk 0:02:00.8]} 21. Qe2
{[%clk 0:01:34.5]} 21... Rb8 {[%clk 0:01:56.4]} 22. Nd2 {[%clk 0:01:18.2]} 22...
h5 {[%clk 0:01:39]} 23. Nb3 {[%clk 0:01:11.8]} 23... Nxb3 {[%clk 0:01:37.8]} 24.
Rxb3 {[%clk 0:01:13.1]} 24... Ne8 {[%clk 0:01:20]} 25. Bd2 {[%clk 0:01:02.2]}
25... Nc7 {[%clk 0:01:15.6]} 26. Reb1 {[%clk 0:01:02.8]} 26... Ra7 {[%clk
0:01:12.8]} 27. a4 {[%clk 0:00:56.5]} 27... b4 {[%clk 0:00:55.4]} 28. Rxb4
{[%clk 0:00:56.6]} 28... Rxb4 {[%clk 0:00:55.9]} 29. Rxb4 {[%clk 0:00:57.2]}
29... Na6 {[%clk 0:00:56.8]} 30. Rb5 {[%clk 0:00:43]} 30... Nc5 {[%clk
0:00:56.7]} 31. Qc4 {[%clk 0:00:40.1]} 31... Rc7 {[%clk 0:00:52.1]} 32. Qb4
{[%clk 0:00:21.4]} 32... h4 {[%clk 0:00:47.4]} 33. Qb1 {[%clk 0:00:20.1]} 33...
hxg3 {[%clk 0:00:46.5]} 34. fxg3 {[%clk 0:00:21.2]} 34... f5 {[%clk 0:00:44.7]}
35. exf5 {[%clk 0:00:20.2]} 35... gxf5 {[%clk 0:00:45.7]} 36. Rb8+ {[%clk
0:00:21]} 36... Kh7 {[%clk 0:00:46.7]} 37. a5 {[%clk 0:00:21.9]} 37... e4 {[%clk
0:00:42.2]} 38. Qd1 {[%clk 0:00:21.2]} 38... Qf7 {[%clk 0:00:41.1]} 39. Nb5
{[%clk 0:00:20.9]} 39... Rd7 {[%clk 0:00:37.6]} 40. Bf4 {[%clk 0:00:22.2]} 40...
Nd3 {[%clk 0:00:36.9]} 41. Bxd6 {[%clk 0:00:21.7]} 41... Kg6 {[%clk 0:00:35.4]}
42. Qe2 {[%clk 0:00:20.3]} 42... Qxd5 {[%clk 0:00:35.3]} 43. Rb6 {[%clk
0:00:18.9]} 43... e3+ {[%clk 0:00:34.4]} 44. Kh2 {[%clk 0:00:19.1]} 44... Nf2
{[%clk 0:00:30.9]} 45. Bf4+ {[%clk 0:00:14.7]} 45... Bf6 {[%clk 0:00:28]} 46.
Qf1 {[%clk 0:00:10]} 46... Ng4+ {[%clk 0:00:21.3]} 47. Kg1 {[%clk 0:00:07.3]}
47... e2 {[%clk 0:00:21.4]} 48. Qxe2 {[%clk 0:00:06.5]} 48... Re7 {[%clk
0:00:20.3]} 49. Qxe7 {[%clk 0:00:05.5]} 49... Qd1+ {[%clk 0:00:18]} 50. Kg2
{[%clk 0:00:06.8]} 50... Qc2+ {[%clk 0:00:17.1]} 51. Kf3 {[%clk 0:00:06.4]}
51... Qf2# {[%clk 0:00:17.7]} 0-1

[Event "*** Titled Tuesday Blitz"]
[Site "Chess.com"]
[Date "2019.08.06"]
[Round "3"]
[White "mikhaillushenkov"]
[Black "ohusbands"]
[Result "1-0"]
[WhiteElo "2677"]
[BlackElo "2585"]
[TimeControl "180+2"]
[EndTime "13:37:32 PDT"]
[Termination "mikhaillushenkov won by resignation"]

1. Nf3 {[%clk 0:03:01.9]} 1... d5 {[%clk 0:03:01]} 2. d4 {[%clk 0:03:02.8]} 2...
e6 {[%clk 0:03:02.9]} 3. c4 {[%clk 0:03:03.1]} 3... Nf6 {[%clk 0:03:04.8]} 4.
Nc3 {[%clk 0:03:03.7]} 4... c6 {[%clk 0:03:05.8]} 5. e3 {[%clk 0:03:04.9]} 5...
Nbd7 {[%clk 0:03:06.3]} 6. Bd3 {[%clk 0:03:05.3]} 6... Bd6 {[%clk 0:03:07.9]} 7.
e4 {[%clk 0:03:06.2]} 7... dxc4 {[%clk 0:03:07.6]} 8. Bxc4 {[%clk 0:03:07.3]}
8... Bb4 {[%clk 0:03:01.8]} 9. Qd3 {[%clk 0:03:00.7]} 9... c5 {[%clk 0:02:57.5]}
10. a3 {[%clk 0:02:59.6]} 10... cxd4 {[%clk 0:02:56]} 11. axb4 {[%clk
0:02:56.3]} 11... dxc3 {[%clk 0:02:57]} 12. bxc3 {[%clk 0:02:53.8]} 12... O-O
{[%clk 0:02:57.9]} 13. Bb3 {[%clk 0:02:38.5]} 13... Qc7 {[%clk 0:02:57.7]} 14.
O-O {[%clk 0:02:33.2]} 14... b6 {[%clk 0:02:58.7]} 15. Bg5 {[%clk 0:02:28.8]}
15... Bb7 {[%clk 0:02:59.6]} 16. Rfe1 {[%clk 0:02:24.8]} 16... Ng4 {[%clk
0:03:00.1]} 17. h3 {[%clk 0:01:43]} 17... Nde5 {[%clk 0:02:58.7]} 18. Nxe5
{[%clk 0:01:41.2]} 18... Nxe5 {[%clk 0:02:59.4]} 19. Qg3 {[%clk 0:01:39.8]}
19... Kh8 {[%clk 0:02:36.2]} 20. Bf4 {[%clk 0:01:39.3]} 20... f6 {[%clk
0:02:37.4]} 21. Bxe6 {[%clk 0:01:39.4]} 21... Rfe8 {[%clk 0:02:38.2]} 22. Bd5
{[%clk 0:01:39.1]} 22... a5 {[%clk 0:02:37.1]} 23. bxa5 {[%clk 0:01:37.7]} 23...
Rxa5 {[%clk 0:02:35.2]} 24. Rxa5 {[%clk 0:01:28.4]} 24... bxa5 {[%clk
0:02:37.1]} 25. c4 {[%clk 0:01:30]} 25... Ba6 {[%clk 0:02:31.1]} 26. Rc1 {[%clk
0:01:25.4]} 26... a4 {[%clk 0:02:23.6]} 27. Qa3 {[%clk 0:01:19.5]} 27... Qa5
{[%clk 0:02:15.2]} 28. Bxe5 {[%clk 0:01:06.8]} 28... fxe5 {[%clk 0:02:17.1]} 29.
c5 {[%clk 0:01:07.1]} 29... Qd2 {[%clk 0:01:52]} 30. c6 {[%clk 0:01:04.9]} 30...
h6 {[%clk 0:01:39.5]} 31. c7 {[%clk 0:00:49.3]} 31... Kh7 {[%clk 0:01:36.9]} 32.
Rb1 {[%clk 0:00:46.4]} 32... Bc8 {[%clk 0:01:31.3]} 33. Qxa4 {[%clk 0:00:44.9]}
33... Rf8 {[%clk 0:01:30.6]} 34. Qa7 {[%clk 0:00:37.2]} 34... Qc2 {[%clk
0:01:26.2]} 35. Ra1 {[%clk 0:00:35.4]} 35... Qc3 {[%clk 0:01:12.5]} 36. Rf1
{[%clk 0:00:34.9]} 36... Rf6 {[%clk 0:01:05.7]} 37. Qb8 {[%clk 0:00:31.2]} 37...
Rf8 {[%clk 0:01:06.5]} 38. Bb7 {[%clk 0:00:19.1]} 38... Bxb7 {[%clk 0:00:27]}
39. Qxf8 {[%clk 0:00:19.9]} 39... Qxc7 {[%clk 0:00:28.2]} 40. Qf5+ {[%clk
0:00:20.6]} 40... Kg8 {[%clk 0:00:27.5]} 41. Rd1 {[%clk 0:00:20.7]} 41... Bc8
{[%clk 0:00:17.6]} 42. Qg6 {[%clk 0:00:21.4]} 42... Qe7 {[%clk 0:00:15.4]} 43.
Qd6 {[%clk 0:00:21.3]} 43... Kf7 {[%clk 0:00:13.4]} 44. Qxe7+ {[%clk 0:00:21.9]}
44... Kxe7 {[%clk 0:00:15.3]} 45. f3 {[%clk 0:00:22.7]} 45... Be6 {[%clk
0:00:16.3]} 46. Rd2 {[%clk 0:00:23.9]} 46... Kf6 {[%clk 0:00:17.8]} 47. Kf2
{[%clk 0:00:25.3]} 47... Kg5 {[%clk 0:00:19.3]} 48. Kg3 {[%clk 0:00:26.1]} 48...
Kf6 {[%clk 0:00:21.2]} 49. h4 {[%clk 0:00:27.4]} 49... Kg6 {[%clk 0:00:22.1]}
50. Kf2 {[%clk 0:00:28.3]} 50... Kf6 {[%clk 0:00:24]} 51. g4 {[%clk 0:00:29.5]}
51... g5 {[%clk 0:00:21.8]} 52. h5 {[%clk 0:00:30.4]} 52... Bf7 {[%clk
0:00:22.6]} 53. Rd6+ {[%clk 0:00:31]} 53... Be6 {[%clk 0:00:23.6]} 54. Ke3
{[%clk 0:00:32.2]} 54... Ke7 {[%clk 0:00:25]} 55. Rb6 {[%clk 0:00:33.4]} 55...
Kf7 {[%clk 0:00:22.6]} 56. Kd2 {[%clk 0:00:34.2]} 56... Ke7 {[%clk 0:00:22.9]}
57. Kc3 {[%clk 0:00:35]} 57... Kf7 {[%clk 0:00:23.1]} 58. Kb4 {[%clk 0:00:36.3]}
58... Ke7 {[%clk 0:00:23.5]} 59. Kc5 {[%clk 0:00:37.7]} 59... Kf7 {[%clk
0:00:19.9]} 60. Kd6 {[%clk 0:00:38.7]} 1-0

[Event "*** Titled Tuesday Blitz"]
[Site "Chess.com"]
[Date "2019.08.06"]
[Round "3"]
[White "Saloni1299"]
[Black "kinga2008"]
[Result "1/2-1/2"]
[WhiteElo "2003"]
[BlackElo "1918"]
[TimeControl "180+2"]
[EndTime "13:37:32 PDT"]
[Termination "Game drawn by agreement"]

1. e4 {[%clk 0:03:01.9]} 1... c5 {[%clk 0:03:00.8]} 2. Nf3 {[%clk 0:03:03.1]}
2... d6 {[%clk 0:03:01.2]} 3. d4 {[%clk 0:03:04.2]} 3... cxd4 {[%clk 0:03:01.8]}
4. Nxd4 {[%clk 0:03:05.3]} 4... Nf6 {[%clk 0:03:03.4]} 5. Nc3 {[%clk 0:03:04.8]}
5... g6 {[%clk 0:03:05]} 6. Be3 {[%clk 0:03:03.9]} 6... Bg7 {[%clk 0:03:06.4]}
7. f3 {[%clk 0:03:05]} 7... O-O {[%clk 0:03:07.3]} 8. Qd2 {[%clk 0:03:06.5]}
8... Nc6 {[%clk 0:03:08.4]} 9. Bc4 {[%clk 0:03:07.6]} 9... Bd7 {[%clk
0:03:09.3]} 10. Bb3 {[%clk 0:03:08.4]} 10... Rb8 {[%clk 0:03:08]} 11. O-O-O
{[%clk 0:03:07.7]} 11... Ne5 {[%clk 0:03:09]} 12. g4 {[%clk 0:03:03.6]} 12... b5
{[%clk 0:03:09.9]} 13. Kb1 {[%clk 0:03:04.3]} 13... a5 {[%clk 0:03:09.9]} 14. a3
{[%clk 0:02:56.3]} 14... b4 {[%clk 0:03:00.7]} 15. axb4 {[%clk 0:02:50.5]} 15...
axb4 {[%clk 0:03:01.1]} 16. Nd5 {[%clk 0:02:44.5]} 16... Nxd5 {[%clk 0:02:54.5]}
17. exd5 {[%clk 0:02:45.4]} 17... Qa5 {[%clk 0:02:48.1]} 18. Qf2 {[%clk
0:02:29]} 18... Ra8 {[%clk 0:02:47]} 19. Kc1 {[%clk 0:02:29.7]} 19... Qa1+
{[%clk 0:02:46.7]} 20. Kd2 {[%clk 0:02:29.1]} 20... Qxb2 {[%clk 0:02:48]} 21.
Ne2 {[%clk 0:02:22.8]} 21... Bb5 {[%clk 0:02:08.2]} 22. Bd4 {[%clk 0:02:16.2]}
22... Nxf3+ {[%clk 0:02:07.5]} 23. Qxf3 {[%clk 0:02:08.6]} 23... Bxd4 {[%clk
0:02:06.3]} 24. Rb1 {[%clk 0:02:00.8]} 24... Bxe2 {[%clk 0:01:54.4]} 25. Kxe2
{[%clk 0:02:01.8]} 25... Qc3 {[%clk 0:01:50.2]} 26. Qxc3 {[%clk 0:01:54.8]}
26... bxc3 {[%clk 0:01:47.6]} 27. Rbd1 {[%clk 0:01:52.4]} 27... Be5 {[%clk
0:01:46.7]} 28. h4 {[%clk 0:01:50.1]} 28... f5 {[%clk 0:01:42.5]} 29. gxf5
{[%clk 0:01:46.3]} 29... Rxf5 {[%clk 0:01:41.9]} 30. Rhf1 {[%clk 0:01:43.2]}
30... Rxf1 {[%clk 0:01:40.9]} 31. Rxf1 {[%clk 0:01:43.5]} 31... Rf8 {[%clk
0:01:40]} 32. Rxf8+ {[%clk 0:01:39.8]} 32... Kxf8 {[%clk 0:01:40.7]} 33. Bc4
{[%clk 0:01:40.6]} 33... Kg7 {[%clk 0:01:41.4]} 34. Kf3 {[%clk 0:01:39]} 34...
Kf6 {[%clk 0:01:37.7]} 35. Bd3 {[%clk 0:01:37.2]} 35... Bd4 {[%clk 0:01:22.9]}
36. h5 {[%clk 0:01:36.3]} 36... gxh5 {[%clk 0:01:19.7]} 37. Bxh7 {[%clk
0:01:37.1]} 37... Ke5 {[%clk 0:01:05.6]} 38. Bg8 {[%clk 0:01:37.9]} 38... Bc5
{[%clk 0:00:52.7]} 39. Kg2 {[%clk 0:01:36.8]} 39... Kf4 {[%clk 0:00:52.6]} 40.
Be6 {[%clk 0:01:36.8]} 40... Ke3 {[%clk 0:00:44.8]} 41. Kh1 {[%clk 0:01:37.3]}
41... Kf3 {[%clk 0:00:29.5]} 42. Bf5 {[%clk 0:01:34.3]} 42... h4 {[%clk
0:00:30.4]} 43. Be6 {[%clk 0:01:35.1]} 43... Kg3 {[%clk 0:00:30.9]} 44. Bf5
{[%clk 0:01:35.5]} 44... Kf4 {[%clk 0:00:17.1]} 45. Be6 {[%clk 0:01:36.4]} 45...
Ke5 {[%clk 0:00:16.2]} 46. Kg2 {[%clk 0:01:37.3]} 46... Kf4 {[%clk 0:00:14.2]}
47. Kh1 {[%clk 0:01:37.5]} 47... Ke3 {[%clk 0:00:10.9]} 48. Kg2 {[%clk
0:01:35.4]} 48... Kd2 {[%clk 0:00:11.4]} 49. Bf5 {[%clk 0:01:36.5]} 49... e6
{[%clk 0:00:06.5]} 50. dxe6 {[%clk 0:01:35.5]} 50... d5 {[%clk 0:00:07.7]} 51.
Kh3 {[%clk 0:01:30.8]} 51... Be7 {[%clk 0:00:08.7]} 52. Bd3 {[%clk 0:01:25.9]}
52... d4 {[%clk 0:00:07.9]} 53. Kg2 {[%clk 0:01:26]} 53... Ke3 {[%clk
0:00:08.8]} 54. Kh1 {[%clk 0:01:27.1]} 54... Kf4 {[%clk 0:00:10.2]} 55. Kg2
{[%clk 0:01:27.8]} 55... Ke5 {[%clk 0:00:11.4]} 56. Kh1 {[%clk 0:01:28.9]} 56...
Kxe6 {[%clk 0:00:11.9]} 57. Kg2 {[%clk 0:01:29.5]} 57... Ke5 {[%clk 0:00:12.4]}
58. Kh1 {[%clk 0:01:30.6]} 58... Kf4 {[%clk 0:00:13.6]} 59. Kg2 {[%clk
0:01:31.5]} 59... Kg4 {[%clk 0:00:15.1]} 60. Kh1 {[%clk 0:01:31.4]} 60... h3
{[%clk 0:00:15.1]} 61. Kh2 {[%clk 0:01:31.1]} 61... Bd6+ {[%clk 0:00:15.4]} 62.
Kh1 {[%clk 0:01:32.4]} 62... Bg3 {[%clk 0:00:16.4]} 63. Bh7 {[%clk 0:01:31.7]}
63... Be1 {[%clk 0:00:17.2]} 64. Bd3 {[%clk 0:01:32.8]} 64... Bd2 {[%clk
0:00:18.6]} 65. Bh7 {[%clk 0:01:34]} 65... Kf4 {[%clk 0:00:20]} 66. Bd3 {[%clk
0:01:35.2]} 66... Ke3 {[%clk 0:00:21.1]} 67. Kh2 {[%clk 0:01:36.4]} 67... Kf2
{[%clk 0:00:21.9]} 68. Kxh3 {[%clk 0:01:37.4]} 68... Ke1 {[%clk 0:00:23.4]} 69.
Kg2 {[%clk 0:01:36.8]} 69... Be3 {[%clk 0:00:25.3]} 70. Kf3 {[%clk 0:01:37.9]}
70... Kd2 {[%clk 0:00:27.2]} 71. Ke4 {[%clk 0:01:38.8]} 71... Kc1 {[%clk
0:00:27.8]} 72. Kd5 {[%clk 0:01:39.8]} 72... Kd2 {[%clk 0:00:28.3]} 73. Ke4
{[%clk 0:01:41.2]} 73... Kc1 {[%clk 0:00:29.6]} 74. Kd5 {[%clk 0:01:42.4]} 74...
Kb2 {[%clk 0:00:31]} 75. Ke4 {[%clk 0:01:44]} 75... Ka3 {[%clk 0:00:31.8]} 76.
Kd5 {[%clk 0:01:45]} 76... Kb4 {[%clk 0:00:33]} 77. Ke4 {[%clk 0:01:46.3]}
1/2-1/2

[Event "*** Titled Tuesday Blitz"]
[Site "Chess.com"]
[Date "2019.08.06"]
[Round "3"]
[White "tteshan"]
[Black "sebsep"]
[Result "0-1"]
[WhiteElo "2187"]
[BlackElo "2121"]
[TimeControl "180+2"]
[EndTime "13:37:34 PDT"]
[Termination "sebsep won by resignation"]

1. d4 {[%clk 0:03:01.9]} 1... Nf6 {[%clk 0:02:59.7]} 2. c4 {[%clk 0:03:03.3]}
2... g6 {[%clk 0:02:59.8]} 3. Nc3 {[%clk 0:03:04.4]} 3... Bg7 {[%clk 0:03:00.7]}
4. e4 {[%clk 0:03:04.1]} 4... d6 {[%clk 0:03:01.7]} 5. Bd3 {[%clk 0:03:04.8]}
5... O-O {[%clk 0:03:01.8]} 6. Nge2 {[%clk 0:03:05.7]} 6... Nc6 {[%clk
0:03:02.1]} 7. d5 {[%clk 0:03:05.7]} 7... Ne5 {[%clk 0:03:02.9]} 8. O-O {[%clk
0:03:03.5]} 8... c5 {[%clk 0:03:03.4]} 9. Be3 {[%clk 0:03:02.4]} 9... Nfg4
{[%clk 0:03:00]} 10. Bf4 {[%clk 0:02:57.2]} 10... Nxd3 {[%clk 0:02:59.4]} 11.
Qxd3 {[%clk 0:02:58.4]} 11... Ne5 {[%clk 0:03:00.8]} 12. Qc2 {[%clk 0:02:50.4]}
12... Nxc4 {[%clk 0:02:59.9]} 13. b3 {[%clk 0:02:50.8]} 13... Ne5 {[%clk
0:03:00.5]} 14. Qd2 {[%clk 0:02:45.4]} 14... Rb8 {[%clk 0:02:54.1]} 15. Bh6
{[%clk 0:02:44.4]} 15... b5 {[%clk 0:02:52.8]} 16. Bxg7 {[%clk 0:02:38.7]} 16...
Kxg7 {[%clk 0:02:54.7]} 17. Rac1 {[%clk 0:02:39.8]} 17... b4 {[%clk 0:02:55.5]}
18. Nd1 {[%clk 0:02:36.1]} 18... Ba6 {[%clk 0:02:56.7]} 19. Ne3 {[%clk 0:02:29]}
19... Qa5 {[%clk 0:02:47.2]} 20. Rfd1 {[%clk 0:02:23.6]} 20... Rfc8 {[%clk
0:02:36.8]} 21. Ng3 {[%clk 0:02:15.3]} 21... Kg8 {[%clk 0:02:26.9]} 22. f4
{[%clk 0:02:03.5]} 22... Nd7 {[%clk 0:01:58.9]} 23. Nc4 {[%clk 0:01:48.1]} 23...
Bxc4 {[%clk 0:01:59]} 24. Rxc4 {[%clk 0:01:48.9]} 24... Nb6 {[%clk 0:01:59.4]}
25. Rcc1 {[%clk 0:01:48.9]} 25... c4 {[%clk 0:02:00.6]} 26. bxc4 {[%clk
0:01:47.1]} 26... Nxc4 {[%clk 0:02:02.5]} 27. Qe2 {[%clk 0:01:42]} 27... Nb6
{[%clk 0:01:53.1]} 28. Qg4 {[%clk 0:01:15.6]} 28... Kh8 {[%clk 0:01:32.8]} 29.
f5 {[%clk 0:01:02.1]} 29... Qa3 {[%clk 0:01:28.7]} 30. Ra1 {[%clk 0:00:53.6]}
30... Qe3+ {[%clk 0:01:27.2]} 31. Kh1 {[%clk 0:00:52.2]} 31... Nc4 {[%clk
0:01:16.9]} 32. fxg6 {[%clk 0:00:50.4]} 32... hxg6 {[%clk 0:01:14.2]} 33. Qh4+
{[%clk 0:00:48.2]} 33... Kg7 {[%clk 0:01:09.9]} 34. Qxe7 {[%clk 0:00:43.3]}
34... Re8 {[%clk 0:01:10.2]} 35. Qh4 {[%clk 0:00:37.9]} 35... Ne5 {[%clk
0:01:02.7]} 36. Re1 {[%clk 0:00:33.4]} 36... Qh6 {[%clk 0:00:42]} 37. Qxh6+
{[%clk 0:00:18.7]} 37... Kxh6 {[%clk 0:00:43.9]} 38. Ne2 {[%clk 0:00:16.8]}
38... Rec8 {[%clk 0:00:42.4]} 39. Nd4 {[%clk 0:00:17.8]} 39... Rc4 {[%clk
0:00:41.7]} 40. Nb3 {[%clk 0:00:15.9]} 40... Rbc8 {[%clk 0:00:39.5]} 41. Rac1
{[%clk 0:00:15]} 41... Kg7 {[%clk 0:00:27.6]} 42. Rxc4 {[%clk 0:00:15.1]} 42...
Rxc4 {[%clk 0:00:29.5]} 43. Na5 {[%clk 0:00:14.1]} 43... Rc2 {[%clk 0:00:28.9]}
44. h3 {[%clk 0:00:11.5]} 44... Rxa2 {[%clk 0:00:29.4]} 45. Nb3 {[%clk
0:00:11.5]} 45... Rb2 {[%clk 0:00:28.4]} 46. Nd4 {[%clk 0:00:12.5]} 46... a5
{[%clk 0:00:29.6]} 47. Nb5 {[%clk 0:00:13.2]} 47... a4 {[%clk 0:00:24.6]} 48.
Nxd6 {[%clk 0:00:13.1]} 48... a3 {[%clk 0:00:25.9]} 49. Nc4 {[%clk 0:00:14.1]}
49... Rc2 {[%clk 0:00:26.9]} 50. Ne3 {[%clk 0:00:13.5]} 50... Rc3 {[%clk
0:00:23.9]} 51. Kg1 {[%clk 0:00:09.4]} 51... a2 {[%clk 0:00:24.7]} 52. Ng4
{[%clk 0:00:09.9]} 52... Nxg4 {[%clk 0:00:21.5]} 53. hxg4 {[%clk 0:00:11.8]}
53... Rb3 {[%clk 0:00:22]} 54. Kf2 {[%clk 0:00:11.9]} 54... Rb1 {[%clk
0:00:21.8]} 55. Re2 {[%clk 0:00:13]} 55... a1=Q {[%clk 0:00:22.9]} 0-1